[Event "Titled Tuesday Blitz June 13 Late 2023"]
[White "Zakhartsov, Vladimir"]
[Black "Klukin, Kirill"]
[WhiteFideId "4145097"]
[BlackFideId "24199273"]
[WhiteElo "2508"]
[BlackElo "2344"]
[Result "1/2-1/2"]
[Round "7"]
[TimeControl "180+2"]
[Date "2023.06.13"]
[WhiteClock "0:00:07"]
[BlackClock "0:00:15"]
[Board "13"]

1. d4 {[%clk 0:03:00]}  d5 {[%clk 0:02:55]} 2. c4 {[%clk 0:03:00]}  c6 {[%clk 0:02:55]} 3. Nc3 {[%clk 0:02:57]}  e6 {[%clk 0:02:54]} 4. e3 {[%clk 0:02:55]}  f5 {[%clk 0:02:53]} 5. Nf3 {[%clk 0:02:44]}  Nf6 {[%clk 0:02:54]} 6. Bd3 {[%clk 0:02:42]}  Bd6 {[%clk 0:02:55]} 7. O-O {[%clk 0:02:39]}  O-O {[%clk 0:02:55]} 8. Qc2 {[%clk 0:02:38]}  Bd7 {[%clk 0:02:55]} 9. b3 {[%clk 0:02:38]}  Be8 {[%clk 0:02:55]} 10. a4 {[%clk 0:02:37]}  Nbd7 {[%clk 0:02:56]} 11. Ba3 {[%clk 0:02:31]}  Bxa3 {[%clk 0:02:51]} 12. Rxa3 {[%clk 0:02:32]}  Bh5 {[%clk 0:02:52]} 13. Nd2 {[%clk 0:02:26]}  Qe7 {[%clk 0:02:52]} 14. Raa1 {[%clk 0:02:26]}  Ne4 {[%clk 0:02:51]} 15. f3 {[%clk 0:02:24]}  Nxc3 {[%clk 0:02:24]} 16. Qxc3 {[%clk 0:02:24]}  Rae8 {[%clk 0:02:25]} 17. f4 {[%clk 0:02:12]}  g5 {[%clk 0:02:23]} 18. b4 {[%clk 0:02:06]}  gxf4 {[%clk 0:02:13]} 19. exf4 {[%clk 0:02:06]}  Nf6 {[%clk 0:02:14]} 20. b5 {[%clk 0:02:01]}  Ne4 {[%clk 0:02:13]} 21. Bxe4 {[%clk 0:02:01]}  fxe4 {[%clk 0:02:12]} 22. Qe3 {[%clk 0:01:47]}  Qg7 {[%clk 0:02:00]} 23. Kh1 {[%clk 0:01:42]}  Bg6 {[%clk 0:01:54]} 24. g4 {[%clk 0:01:28]}  c5 {[%clk 0:01:46]} 25. Nb3 {[%clk 0:01:05]}  cxd4 {[%clk 0:00:58]} 26. Nxd4 {[%clk 0:01:05]}  e5 {[%clk 0:00:57]} 27. fxe5 {[%clk 0:01:02]}  Qxe5 {[%clk 0:00:58]} 28. c5 {[%clk 0:00:56]}  Qc7 {[%clk 0:00:45]} 29. c6 {[%clk 0:00:35]}  bxc6 {[%clk 0:00:22]} 30. bxc6 {[%clk 0:00:31]}  Qd6 {[%clk 0:00:09]} 31. Rac1 {[%clk 0:00:27]}  a6 {[%clk 0:00:08]} 32. Rxf8+ {[%clk 0:00:25]}  Rxf8 {[%clk 0:00:09]} 33. c7 {[%clk 0:00:25]}  Rc8 {[%clk 0:00:09]} 34. Qc3 {[%clk 0:00:17]}  e3 {[%clk 0:00:05]} 35. Qxe3 {[%clk 0:00:15]}  Rxc7 {[%clk 0:00:05]} 36. Rxc7 {[%clk 0:00:09]}  Be4+ {[%clk 0:00:05]} 37. Kg1 {[%clk 0:00:07]}  Qxc7 {[%clk 0:00:06]} 38. Qg5+ {[%clk 0:00:07]}  Kf7 {[%clk 0:00:06]} 39. Qg7+ {[%clk 0:00:04]}  Kxg7 {[%clk 0:00:06]} 40. Ne6+ {[%clk 0:00:05]}  Kf6 {[%clk 0:00:06]} 41. Nxc7 {[%clk 0:00:05]}  a5 {[%clk 0:00:06]} 42. Kf2 {[%clk 0:00:05]}  Ke5 {[%clk 0:00:07]} 43. Nb5 {[%clk 0:00:03]}  d4 {[%clk 0:00:07]} 44. h4 {[%clk 0:00:03]}  Bc6 {[%clk 0:00:07]} 45. Na3 {[%clk 0:00:03]}  Bxa4 {[%clk 0:00:07]} 46. Nc4+ {[%clk 0:00:03]}  Kf4 {[%clk 0:00:08]} 47. g5 {[%clk 0:00:02]}  Kg4 {[%clk 0:00:07]} 48. Nxa5 {[%clk 0:00:02]}  Kxh4 {[%clk 0:00:07]} 49. Nc4 {[%clk 0:00:01]}  Kxg5 {[%clk 0:00:07]} 50. Ne5 {[%clk 0:00:02]}  Bb5 {[%clk 0:00:08]} 51. Nf3+ {[%clk 0:00:02]}  Kf4 {[%clk 0:00:08]} 52. Nxd4 {[%clk 0:00:03]}  Ba6 {[%clk 0:00:08]} 53. Kg1 {[%clk 0:00:03]}  Bb7 {[%clk 0:00:08]} 54. Kh2 {[%clk 0:00:03]}  Kg4 {[%clk 0:00:08]} 55. Nb5 {[%clk 0:00:03]}  h5 {[%clk 0:00:09]} 56. Nd6 {[%clk 0:00:04]}  Bd5 {[%clk 0:00:09]} 57. Nb5 {[%clk 0:00:04]}  Kf4 {[%clk 0:00:09]} 58. Nc3 {[%clk 0:00:04]}  Bc6 {[%clk 0:00:08]} 59. Kh3 {[%clk 0:00:04]}  Kg5 {[%clk 0:00:09]} 60. Ne2 {[%clk 0:00:04]}  Bd7+ {[%clk 0:00:09]} 61. Kh2 {[%clk 0:00:04]}  Bg4 {[%clk 0:00:10]} 62. Nc3 {[%clk 0:00:04]}  Kf4 {[%clk 0:00:10]} 63. Nd5+ {[%clk 0:00:04]}  Kg5 {[%clk 0:00:11]} 64. Nc3 {[%clk 0:00:04]}  Be6 {[%clk 0:00:11]} 65. Ne4+ {[%clk 0:00:04]}  Kf4 {[%clk 0:00:12]} 66. Ng3 {[%clk 0:00:05]}  h4 {[%clk 0:00:12]} 67. Ne2+ {[%clk 0:00:05]}  Kf3 {[%clk 0:00:13]} 68. Nd4+ {[%clk 0:00:05]}  Ke4 {[%clk 0:00:14]} 69. Nxe6 {[%clk 0:00:05]}  Ke5 {[%clk 0:00:15]} 70. Kh3 {[%clk 0:00:06]}  Kxe6 {[%clk 0:00:15]} 71. Kxh4 {[%clk 0:00:07]} 1/2-1/2


[Site "https://www.chess.com"]

[Event "Titled Tuesday Blitz June 13 Late 2023"]
[White "Santos Ruiz, Miguel"]
[Black "Caruana, Fabiano"]
[WhiteFideId "22291482"]
[BlackFideId "2020009"]
[WhiteElo "2499"]
[BlackElo "2832"]
[Result "1-0"]
[Round "7"]
[TimeControl "180+2"]
[Date "2023.06.13"]
[WhiteClock "0:00:47"]
[BlackClock "0:00:00"]
[Board "15"]

1. e4 {[%clk 0:03:00]}  e5 {[%clk 0:02:58]} 2. Nf3 {[%clk 0:03:00]}  Nc6 {[%clk 0:02:59]} 3. Bc4 {[%clk 0:03:01]}  Nf6 {[%clk 0:02:59]} 4. d3 {[%clk 0:03:01]}  Bc5 {[%clk 0:02:59]} 5. a4 {[%clk 0:03:01]}  d6 {[%clk 0:02:58]} 6. a5 {[%clk 0:03:00]}  a6 {[%clk 0:02:57]} 7. Be3 {[%clk 0:02:58]}  h6 {[%clk 0:02:53]} 8. Bxc5 {[%clk 0:02:49]}  dxc5 {[%clk 0:02:53]} 9. h3 {[%clk 0:02:49]}  Qd6 {[%clk 0:02:39]} 10. Nbd2 {[%clk 0:02:48]}  O-O {[%clk 0:02:37]} 11. c3 {[%clk 0:02:38]}  b5 {[%clk 0:02:34]} 12. axb6 {[%clk 0:02:35]}  cxb6 {[%clk 0:02:35]} 13. Bd5 {[%clk 0:02:26]}  Nxd5 {[%clk 0:02:16]} 14. Nc4 {[%clk 0:02:25]}  Nxc3 {[%clk 0:02:16]} 15. bxc3 {[%clk 0:02:03]}  Qc7 {[%clk 0:02:13]} 16. Ne3 {[%clk 0:01:54]}  b5 {[%clk 0:02:13]} 17. Nd5 {[%clk 0:01:53]}  Qd6 {[%clk 0:02:09]} 18. O-O {[%clk 0:01:53]}  Be6 {[%clk 0:02:05]} 19. d4 {[%clk 0:01:31]}  exd4 {[%clk 0:01:59]} 20. cxd4 {[%clk 0:01:32]}  cxd4 {[%clk 0:01:37]} 21. Nxd4 {[%clk 0:01:30]}  Nxd4 {[%clk 0:01:34]} 22. Qxd4 {[%clk 0:01:30]}  Bxd5 {[%clk 0:01:34]} 23. exd5 {[%clk 0:01:27]}  Rfd8 {[%clk 0:01:32]} 24. Ra5 {[%clk 0:01:08]}  Qxd5 {[%clk 0:00:49]} 25. Qxd5 {[%clk 0:01:08]}  Rxd5 {[%clk 0:00:50]} 26. Rfa1 {[%clk 0:01:09]}  Rdd8 {[%clk 0:00:39]} 27. Rxa6 {[%clk 0:01:09]}  Rxa6 {[%clk 0:00:40]} 28. Rxa6 {[%clk 0:01:09]}  Rb8 {[%clk 0:00:40]} 29. Ra3 {[%clk 0:01:09]}  b4 {[%clk 0:00:40]} 30. Rb3 {[%clk 0:01:09]}  Kf8 {[%clk 0:00:37]} 31. Kf1 {[%clk 0:01:07]}  Ke7 {[%clk 0:00:37]} 32. Ke2 {[%clk 0:01:08]}  Kd6 {[%clk 0:00:37]} 33. Kd2 {[%clk 0:01:05]}  Kc5 {[%clk 0:00:36]} 34. Rf3 {[%clk 0:01:03]}  Rb7 {[%clk 0:00:34]} 35. Kc2 {[%clk 0:01:00]}  g6 {[%clk 0:00:27]} 36. Rf6 {[%clk 0:00:54]}  Kc4 {[%clk 0:00:15]} 37. Kb2 {[%clk 0:00:52]}  Kd3 {[%clk 0:00:04]} 38. Kb3 {[%clk 0:00:49]}  Ke2 {[%clk 0:00:05]} 39. g4 {[%clk 0:00:48]}  Kf1 {[%clk 0:00:05]} 40. h4 {[%clk 0:00:48]}  Kg2 {[%clk 0:00:04]} 41. h5 {[%clk 0:00:49]}  gxh5 {[%clk 0:00:03]} 42. gxh5 {[%clk 0:00:49]}  Rb8 {[%clk 0:00:01]} 43. Rxh6 {[%clk 0:00:48]}  Rb5 {[%clk 0:00:00]} 44. Rf6 {[%clk 0:00:47]} 1-0


[Site "https://www.chess.com"]

[Event "Titled Tuesday Blitz June 13 Late 2023"]
[White "Kollars, Dmitrij"]
[Black "Kosakowski, Jakub"]
[WhiteFideId "12909572"]
[BlackFideId "1185080"]
[WhiteElo "2584"]
[BlackElo "2488"]
[Result "1-0"]
[Round "7"]
[TimeControl "180+2"]
[Date "2023.06.13"]
[WhiteClock "0:00:14"]
[BlackClock "0:00:02"]
[Board "16"]

1. e4 {[%clk 0:03:00]}  c6 {[%clk 0:02:55]} 2. Nf3 {[%clk 0:02:58]}  d5 {[%clk 0:02:54]} 3. d3 {[%clk 0:02:59]}  g6 {[%clk 0:02:51]} 4. e5 {[%clk 0:02:59]}  Bg7 {[%clk 0:02:51]} 5. d4 {[%clk 0:02:59]}  f6 {[%clk 0:02:52]} 6. exf6 {[%clk 0:02:58]}  Nxf6 {[%clk 0:02:52]} 7. Be2 {[%clk 0:02:59]}  O-O {[%clk 0:02:52]} 8. O-O {[%clk 0:02:59]}  Bg4 {[%clk 0:02:49]} 9. c4 {[%clk 0:02:54]}  Qd6 {[%clk 0:02:50]} 10. Nc3 {[%clk 0:02:46]}  Nbd7 {[%clk 0:02:50]} 11. Ne5 {[%clk 0:02:35]}  Bxe2 {[%clk 0:02:09]} 12. Qxe2 {[%clk 0:02:35]}  Ne4 {[%clk 0:02:03]} 13. Nxe4 {[%clk 0:02:08]}  dxe4 {[%clk 0:02:04]} 14. Nxd7 {[%clk 0:01:48]}  Qxd7 {[%clk 0:02:05]} 15. Be3 {[%clk 0:01:48]}  Bxd4 {[%clk 0:01:58]} 16. Rad1 {[%clk 0:01:46]}  e5 {[%clk 0:01:58]} 17. Qc2 {[%clk 0:01:37]}  Qf5 {[%clk 0:01:48]} 18. Bxd4 {[%clk 0:01:32]}  exd4 {[%clk 0:01:49]} 19. Rxd4 {[%clk 0:01:33]}  Rae8 {[%clk 0:01:50]} 20. Qe2 {[%clk 0:01:18]}  e3 {[%clk 0:01:23]} 21. fxe3 {[%clk 0:01:12]}  Rxe3 {[%clk 0:01:21]} 22. Qd1 {[%clk 0:00:48]}  Qxf1+ {[%clk 0:01:03]} 23. Qxf1 {[%clk 0:00:49]}  Rxf1+ {[%clk 0:01:03]} 24. Kxf1 {[%clk 0:00:50]}  Kf7 {[%clk 0:01:04]} 25. Kf2 {[%clk 0:00:47]}  Re6 {[%clk 0:01:03]} 26. Kf3 {[%clk 0:00:41]}  Ke7 {[%clk 0:01:02]} 27. c5 {[%clk 0:00:32]}  Rf6+ {[%clk 0:01:01]} 28. Ke3 {[%clk 0:00:30]}  Re6+ {[%clk 0:01:01]} 29. Kd3 {[%clk 0:00:31]}  Re1 {[%clk 0:01:00]} 30. Rb4 {[%clk 0:00:30]}  Rd1+ {[%clk 0:00:56]} 31. Ke3 {[%clk 0:00:28]}  Rd7 {[%clk 0:00:56]} 32. Ke4 {[%clk 0:00:27]}  Ke6 {[%clk 0:00:55]} 33. Rb3 {[%clk 0:00:26]}  Re7 {[%clk 0:00:52]} 34. Kd4 {[%clk 0:00:23]}  Kf6 {[%clk 0:00:42]} 35. a4 {[%clk 0:00:21]}  g5 {[%clk 0:00:38]} 36. g4 {[%clk 0:00:20]}  Kg6 {[%clk 0:00:38]} 37. h3 {[%clk 0:00:19]}  h5 {[%clk 0:00:37]} 38. a5 {[%clk 0:00:19]}  a6 {[%clk 0:00:37]} 39. Re3 {[%clk 0:00:16]}  Rd7+ {[%clk 0:00:22]} 40. Kc4 {[%clk 0:00:15]}  hxg4 {[%clk 0:00:21]} 41. hxg4 {[%clk 0:00:16]}  Kf6 {[%clk 0:00:20]} 42. Re8 {[%clk 0:00:15]}  Kf7 {[%clk 0:00:20]} 43. Re5 {[%clk 0:00:14]}  Kf6 {[%clk 0:00:21]} 44. Rf5+ {[%clk 0:00:14]}  Kg6 {[%clk 0:00:21]} 45. Rf8 {[%clk 0:00:14]}  Kg7 {[%clk 0:00:21]} 46. Re8 {[%clk 0:00:14]}  Kg6 {[%clk 0:00:22]} 47. b4 {[%clk 0:00:13]}  Kf6 {[%clk 0:00:22]} 48. Re4 {[%clk 0:00:13]}  Kg6 {[%clk 0:00:23]} 49. Re3 {[%clk 0:00:13]}  Kf6 {[%clk 0:00:23]} 50. Re2 {[%clk 0:00:13]}  Kg6 {[%clk 0:00:24]} 51. Re8 {[%clk 0:00:13]}  Kf7 {[%clk 0:00:24]} 52. Rh8 {[%clk 0:00:13]}  Kg7 {[%clk 0:00:24]} 53. Rc8 {[%clk 0:00:13]}  Kg6 {[%clk 0:00:24]} 54. Rf8 {[%clk 0:00:14]}  Kg7 {[%clk 0:00:24]} 55. Rf2 {[%clk 0:00:14]}  Kg6 {[%clk 0:00:25]} 56. Rf5 {[%clk 0:00:15]}  Kh6 {[%clk 0:00:20]} 57. Rf6+ {[%clk 0:00:14]}  Kg7 {[%clk 0:00:21]} 58. Rd6 {[%clk 0:00:15]}  Rf7 {[%clk 0:00:20]} 59. Kd3 {[%clk 0:00:15]}  Re7 {[%clk 0:00:15]} 60. Kd4 {[%clk 0:00:15]}  Kf7 {[%clk 0:00:15]} 61. Rh6 {[%clk 0:00:15]}  Kg7 {[%clk 0:00:15]} 62. Rd6 {[%clk 0:00:16]}  Kf7 {[%clk 0:00:16]} 63. Kc3 {[%clk 0:00:16]}  Kg7 {[%clk 0:00:14]} 64. Kd3 {[%clk 0:00:17]}  Kf7 {[%clk 0:00:15]} 65. Kd4 {[%clk 0:00:16]}  Kg7 {[%clk 0:00:15]} 66. b5 {[%clk 0:00:16]}  cxb5 {[%clk 0:00:07]} 67. c6 {[%clk 0:00:15]}  Rc7 {[%clk 0:00:02]} 68. Rd7+ {[%clk 0:00:14]} 1-0


[Site "https://www.chess.com"]

[Event "Titled Tuesday Blitz June 13 Late 2023"]
[White "Andreikin, Dmitry"]
[Black "Perez Ponsa, Federico"]
[WhiteFideId "4158814"]
[BlackFideId "117927"]
[WhiteElo "2736"]
[BlackElo "2590"]
[Result "1-0"]
[Round "7"]
[TimeControl "180+2"]
[Date "2023.06.13"]
[WhiteClock "0:00:48"]
[BlackClock "0:00:44"]
[Board "18"]

1. c4 {[%clk 0:03:00]}  g6 {[%clk 0:02:57]} 2. d4 {[%clk 0:03:00]}  Bg7 {[%clk 0:02:58]} 3. e4 {[%clk 0:03:00]}  d6 {[%clk 0:02:58]} 4. Nc3 {[%clk 0:03:00]}  Nf6 {[%clk 0:02:58]} 5. h3 {[%clk 0:03:00]}  O-O {[%clk 0:02:59]} 6. Be3 {[%clk 0:03:00]}  c5 {[%clk 0:02:59]} 7. Nf3 {[%clk 0:02:59]}  Na6 {[%clk 0:02:59]} 8. g4 {[%clk 0:02:58]}  Qa5 {[%clk 0:02:46]} 9. Qd2 {[%clk 0:02:50]}  Bd7 {[%clk 0:02:35]} 10. Bg2 {[%clk 0:02:37]}  Rac8 {[%clk 0:02:28]} 11. b3 {[%clk 0:02:37]}  Qb4 {[%clk 0:02:08]} 12. O-O {[%clk 0:02:30]}  b5 {[%clk 0:02:04]} 13. a3 {[%clk 0:02:05]}  Qxb3 {[%clk 0:01:58]} 14. cxb5 {[%clk 0:01:47]}  Nc7 {[%clk 0:01:58]} 15. Rfb1 {[%clk 0:01:42]}  Qc4 {[%clk 0:01:30]} 16. Bf1 {[%clk 0:01:42]}  Qe6 {[%clk 0:01:27]} 17. Ng5 {[%clk 0:01:35]}  Nxe4 {[%clk 0:01:25]} 18. Ncxe4 {[%clk 0:01:26]}  Qd5 {[%clk 0:01:24]} 19. Bg2 {[%clk 0:01:14]}  Qc4 {[%clk 0:01:19]} 20. Rc1 {[%clk 0:01:05]}  Qa4 {[%clk 0:01:18]} 21. dxc5 {[%clk 0:01:03]}  Bxa1 {[%clk 0:01:16]} 22. Rxa1 {[%clk 0:01:02]}  Nxb5 {[%clk 0:01:07]} 23. cxd6 {[%clk 0:01:02]}  Nxd6 {[%clk 0:00:50]} 24. Nxd6 {[%clk 0:00:53]}  exd6 {[%clk 0:00:51]} 25. Ne4 {[%clk 0:00:53]}  f5 {[%clk 0:00:46]} 26. Nxd6 {[%clk 0:00:49]}  Rcd8 {[%clk 0:00:46]} 27. Bd5+ {[%clk 0:00:48]}  Kg7 {[%clk 0:00:44]} 28. Bd4+ {[%clk 0:00:48]} 1-0


[Site "https://www.chess.com"]

[Event "Titled Tuesday Blitz June 13 Late 2023"]
[White "Anton Guijarro, David"]
[Black "Gomez Ledo, Roberto Carlos"]
[WhiteFideId "2285525"]
[BlackFideId "3507076"]
[WhiteElo "2618"]
[BlackElo "2378"]
[Result "1-0"]
[Round "7"]
[TimeControl "180+2"]
[Date "2023.06.13"]
[WhiteClock "0:00:15"]
[BlackClock "0:00:00"]
[Board "20"]

1. Nf3 {[%clk 0:03:00]}  d5 {[%clk 0:02:57]} 2. b3 {[%clk 0:03:01]}  Bf5 {[%clk 0:02:56]} 3. Bb2 {[%clk 0:03:00]}  e6 {[%clk 0:02:56]} 4. d3 {[%clk 0:03:00]}  h6 {[%clk 0:02:53]} 5. Nbd2 {[%clk 0:03:00]}  Nf6 {[%clk 0:02:52]} 6. g3 {[%clk 0:02:59]}  a5 {[%clk 0:02:50]} 7. a3 {[%clk 0:02:59]}  Be7 {[%clk 0:02:47]} 8. Bg2 {[%clk 0:02:59]}  O-O {[%clk 0:02:47]} 9. O-O {[%clk 0:02:59]}  Bh7 {[%clk 0:02:47]} 10. c4 {[%clk 0:02:59]}  c6 {[%clk 0:02:46]} 11. Ra2 {[%clk 0:02:58]}  Nbd7 {[%clk 0:02:43]} 12. Qa1 {[%clk 0:02:58]}  Qb6 {[%clk 0:02:44]} 13. Bd4 {[%clk 0:02:53]}  c5 {[%clk 0:02:42]} 14. Bb2 {[%clk 0:02:48]}  d4 {[%clk 0:02:42]} 15. Ne1 {[%clk 0:02:40]}  e5 {[%clk 0:02:38]} 16. Nc2 {[%clk 0:02:39]}  Rfe8 {[%clk 0:02:35]} 17. Rb1 {[%clk 0:02:33]}  Bf8 {[%clk 0:02:33]} 18. b4 {[%clk 0:02:30]}  axb4 {[%clk 0:02:14]} 19. axb4 {[%clk 0:02:31]}  Rxa2 {[%clk 0:02:14]} 20. Qxa2 {[%clk 0:02:32]}  cxb4 {[%clk 0:02:03]} 21. Nb3 {[%clk 0:02:17]}  Nc5 {[%clk 0:01:53]} 22. Ba1 {[%clk 0:01:11]}  Nfd7 {[%clk 0:01:22]} 23. Nxc5 {[%clk 0:01:10]}  Nxc5 {[%clk 0:01:15]} 24. Nxb4 {[%clk 0:01:07]}  Qd6 {[%clk 0:01:07]} 25. Nd5 {[%clk 0:01:04]}  e4 {[%clk 0:01:03]} 26. dxe4 {[%clk 0:01:02]}  Bxe4 {[%clk 0:00:58]} 27. Rd1 {[%clk 0:01:02]}  Bxg2 {[%clk 0:00:48]} 28. Kxg2 {[%clk 0:01:03]}  Ne6 {[%clk 0:00:41]} 29. Bxd4 {[%clk 0:01:01]}  Nxd4 {[%clk 0:00:38]} 30. Rxd4 {[%clk 0:01:02]}  Qc5 {[%clk 0:00:37]} 31. e3 {[%clk 0:00:59]}  b5 {[%clk 0:00:31]} 32. cxb5 {[%clk 0:00:58]}  Qxb5 {[%clk 0:00:32]} 33. Qc4 {[%clk 0:00:58]}  Qb7 {[%clk 0:00:27]} 34. Qc7 {[%clk 0:00:57]}  Qa8 {[%clk 0:00:26]} 35. e4 {[%clk 0:00:52]}  Rc8 {[%clk 0:00:15]} 36. Qd7 {[%clk 0:00:45]}  Rc1 {[%clk 0:00:14]} 37. Rd3 {[%clk 0:00:36]}  Qa1 {[%clk 0:00:13]} 38. Rf3 {[%clk 0:00:34]}  Rg1+ {[%clk 0:00:11]} 39. Kh3 {[%clk 0:00:34]}  Qf1+ {[%clk 0:00:11]} 40. Kg4 {[%clk 0:00:28]}  f6 {[%clk 0:00:05]} 41. Nxf6+ {[%clk 0:00:23]}  gxf6 {[%clk 0:00:04]} 42. Qe6+ {[%clk 0:00:24]}  Kh8 {[%clk 0:00:03]} 43. Qe8 {[%clk 0:00:18]}  Kg7 {[%clk 0:00:02]} 44. e5 {[%clk 0:00:16]}  h5+ {[%clk 0:00:00]} 45. Qxh5 {[%clk 0:00:15]} 1-0


[Site "https://www.chess.com"]

[Event "Titled Tuesday Blitz June 13 Late 2023"]
[White "Kramnik, Vladimir"]
[Black "Sydoryka, Vladyslav"]
[WhiteFideId "4101588"]
[BlackFideId "14145928"]
[WhiteElo "2703"]
[BlackElo "2269"]
[Result "0-1"]
[Round "7"]
[TimeControl "180+2"]
[Date "2023.06.13"]
[WhiteClock "0:00:00"]
[BlackClock "0:00:04"]
[Board "22"]

1. c4 {[%clk 0:03:00]}  c5 {[%clk 0:03:00]} 2. g3 {[%clk 0:02:59]}  Nc6 {[%clk 0:02:57]} 3. Bg2 {[%clk 0:03:00]}  g6 {[%clk 0:02:58]} 4. Nc3 {[%clk 0:03:00]}  Bg7 {[%clk 0:02:58]} 5. d3 {[%clk 0:03:00]}  d6 {[%clk 0:02:58]} 6. Qd2 {[%clk 0:03:00]}  Nf6 {[%clk 0:02:51]} 7. b3 {[%clk 0:02:59]}  O-O {[%clk 0:02:51]} 8. Bb2 {[%clk 0:02:59]}  Rb8 {[%clk 0:02:49]} 9. e3 {[%clk 0:02:55]}  a6 {[%clk 0:02:47]} 10. Nge2 {[%clk 0:02:55]}  Bd7 {[%clk 0:02:47]} 11. O-O {[%clk 0:02:54]}  b5 {[%clk 0:02:45]} 12. Nd5 {[%clk 0:02:49]}  e6 {[%clk 0:02:39]} 13. Nxf6+ {[%clk 0:02:47]}  Bxf6 {[%clk 0:02:40]} 14. Bxf6 {[%clk 0:02:42]}  Qxf6 {[%clk 0:02:41]} 15. f4 {[%clk 0:02:34]}  Rfd8 {[%clk 0:02:38]} 16. g4 {[%clk 0:02:25]}  h6 {[%clk 0:01:57]} 17. Ng3 {[%clk 0:02:17]}  Qe7 {[%clk 0:01:07]} 18. Rae1 {[%clk 0:02:01]}  bxc4 {[%clk 0:00:28]} 19. dxc4 {[%clk 0:01:58]}  a5 {[%clk 0:00:26]} 20. Ne4 {[%clk 0:01:26]}  Be8 {[%clk 0:00:25]} 21. g5 {[%clk 0:01:18]}  hxg5 {[%clk 0:00:08]} 22. fxg5 {[%clk 0:01:17]}  Ne5 {[%clk 0:00:08]} 23. Qf2 {[%clk 0:01:12]}  Bc6 {[%clk 0:00:04]} 24. Nf6+ {[%clk 0:01:09]}  Kg7 {[%clk 0:00:04]} 25. Bxc6 {[%clk 0:01:06]}  Nxc6 {[%clk 0:00:05]} 26. Ng4 {[%clk 0:01:01]}  Ne5 {[%clk 0:00:03]} 27. Qf6+ {[%clk 0:00:55]}  Qxf6 {[%clk 0:00:03]} 28. gxf6+ {[%clk 0:00:55]}  Kh7 {[%clk 0:00:02]} 29. Nxe5 {[%clk 0:00:54]}  dxe5 {[%clk 0:00:02]} 30. Rd1 {[%clk 0:00:53]}  g5 {[%clk 0:00:02]} 31. Kg2 {[%clk 0:00:42]}  Kg6 {[%clk 0:00:02]} 32. Kf3 {[%clk 0:00:41]}  Rxd1 {[%clk 0:00:01]} 33. Rxd1 {[%clk 0:00:40]}  Kxf6 {[%clk 0:00:02]} 34. Rd7 {[%clk 0:00:38]}  Rh8 {[%clk 0:00:02]} 35. Kg3 {[%clk 0:00:38]}  a4 {[%clk 0:00:01]} 36. Rb7 {[%clk 0:00:34]}  axb3 {[%clk 0:00:02]} 37. axb3 {[%clk 0:00:35]}  Kg6 {[%clk 0:00:02]} 38. Rb5 {[%clk 0:00:34]}  Rc8 {[%clk 0:00:02]} 39. Rb6 {[%clk 0:00:35]}  Kf6 {[%clk 0:00:01]} 40. Kg4 {[%clk 0:00:34]}  Kg6 {[%clk 0:00:01]} 41. e4 {[%clk 0:00:33]}  Rc7 {[%clk 0:00:02]} 42. Kg3 {[%clk 0:00:33]}  Rc8 {[%clk 0:00:01]} 43. Kg4 {[%clk 0:00:32]}  Kf6 {[%clk 0:00:01]} 44. Rb5 {[%clk 0:00:27]}  Rc7 {[%clk 0:00:01]} 45. h4 {[%clk 0:00:26]}  gxh4 {[%clk 0:00:02]} 46. Kxh4 {[%clk 0:00:26]}  Rc8 {[%clk 0:00:02]} 47. Kg4 {[%clk 0:00:27]}  Ke7 {[%clk 0:00:03]} 48. Kf3 {[%clk 0:00:28]}  Kd6 {[%clk 0:00:03]} 49. Rb6+ {[%clk 0:00:27]}  Kd7 {[%clk 0:00:03]} 50. Ke3 {[%clk 0:00:26]}  f5 {[%clk 0:00:03]} 51. Rb7+ {[%clk 0:00:25]}  Kd6 {[%clk 0:00:03]} 52. Rb6+ {[%clk 0:00:23]}  Ke7 {[%clk 0:00:04]} 53. Rb5 {[%clk 0:00:22]}  Kf6 {[%clk 0:00:03]} 54. Rb6 {[%clk 0:00:22]}  f4+ {[%clk 0:00:02]} 55. Kf3 {[%clk 0:00:22]}  Rg8 {[%clk 0:00:03]} 56. b4 {[%clk 0:00:21]}  Rg3+ {[%clk 0:00:03]} 57. Kf2 {[%clk 0:00:20]}  cxb4 {[%clk 0:00:04]} 58. Rxb4 {[%clk 0:00:20]}  Rc3 {[%clk 0:00:04]} 59. Ra4 {[%clk 0:00:18]}  Kg5 {[%clk 0:00:04]} 60. Ra6 {[%clk 0:00:18]}  Rxc4 {[%clk 0:00:04]} 61. Kf3 {[%clk 0:00:18]}  Rc3+ {[%clk 0:00:03]} 62. Kf2 {[%clk 0:00:19]}  Re3 {[%clk 0:00:01]} 63. Ra4 {[%clk 0:00:20]}  Kf6 {[%clk 0:00:01]} 64. Rc4 {[%clk 0:00:20]}  Rd3 {[%clk 0:00:02]} 65. Rc6 {[%clk 0:00:18]}  Rd4 {[%clk 0:00:01]} 66. Kf3 {[%clk 0:00:17]}  Ra4 {[%clk 0:00:02]} 67. Rb6 {[%clk 0:00:17]}  Ra3+ {[%clk 0:00:03]} 68. Kf2 {[%clk 0:00:16]}  Re3 {[%clk 0:00:03]} 69. Rb4 {[%clk 0:00:16]}  Kg5 {[%clk 0:00:04]} 70. Ra4 {[%clk 0:00:16]}  Kg4 {[%clk 0:00:04]} 71. Rb4 {[%clk 0:00:15]}  Ra3 {[%clk 0:00:03]} 72. Rb5 {[%clk 0:00:16]}  Ra2+ {[%clk 0:00:03]} 73. Kg1 {[%clk 0:00:15]}  Kg3 {[%clk 0:00:03]} 74. Kf1 {[%clk 0:00:14]}  Ra1+ {[%clk 0:00:03]} 75. Ke2 {[%clk 0:00:14]}  f3+ {[%clk 0:00:04]} 76. Ke3 {[%clk 0:00:00]}  f2 {[%clk 0:00:04]} 0-1


[Site "https://www.chess.com"]

[Event "Titled Tuesday Blitz June 13 Late 2023"]
[White "Demidov, Mikhail"]
[Black "Janaszak, Dawid"]
[WhiteFideId "4197143"]
[BlackFideId "1119206"]
[WhiteElo "2500"]
[BlackElo "2220"]
[Result "1/2-1/2"]
[Round "7"]
[TimeControl "180+2"]
[Date "2023.06.13"]
[WhiteClock "0:00:37"]
[BlackClock "0:00:23"]
[Board "23"]

1. Nf3 {[%clk 0:02:51]}  d5 {[%clk 0:02:59]} 2. d4 {[%clk 0:02:50]}  Nf6 {[%clk 0:02:59]} 3. Bf4 {[%clk 0:02:51]}  c5 {[%clk 0:02:58]} 4. dxc5 {[%clk 0:02:51]}  e6 {[%clk 0:02:52]} 5. e3 {[%clk 0:02:52]}  Bxc5 {[%clk 0:02:51]} 6. Be2 {[%clk 0:02:52]}  O-O {[%clk 0:02:51]} 7. O-O {[%clk 0:02:53]}  Nc6 {[%clk 0:02:51]} 8. c4 {[%clk 0:02:53]}  h6 {[%clk 0:02:48]} 9. Nc3 {[%clk 0:02:52]}  dxc4 {[%clk 0:02:35]} 10. Bxc4 {[%clk 0:02:52]}  a6 {[%clk 0:02:29]} 11. Rc1 {[%clk 0:02:50]}  Qe7 {[%clk 0:02:24]} 12. Na4 {[%clk 0:02:44]}  Rd8 {[%clk 0:02:23]} 13. Qe2 {[%clk 0:02:42]}  Ba7 {[%clk 0:02:09]} 14. Bb3 {[%clk 0:02:34]}  e5 {[%clk 0:02:03]} 15. Bg3 {[%clk 0:02:34]}  Be6 {[%clk 0:01:49]} 16. Bxe6 {[%clk 0:02:29]}  Qxe6 {[%clk 0:01:48]} 17. Nc3 {[%clk 0:02:25]}  Rd7 {[%clk 0:01:39]} 18. Bh4 {[%clk 0:02:13]}  g5 {[%clk 0:01:28]} 19. Bg3 {[%clk 0:02:12]}  Rad8 {[%clk 0:01:27]} 20. Rfd1 {[%clk 0:02:10]}  Nh5 {[%clk 0:00:54]} 21. Nd2 {[%clk 0:01:39]}  Nxg3 {[%clk 0:00:53]} 22. hxg3 {[%clk 0:01:38]}  f5 {[%clk 0:00:42]} 23. Nf3 {[%clk 0:01:23]}  e4 {[%clk 0:00:40]} 24. Nd2 {[%clk 0:01:21]}  Ne5 {[%clk 0:00:40]} 25. Rb1 {[%clk 0:01:10]}  Nd3 {[%clk 0:00:40]} 26. Nf1 {[%clk 0:01:08]}  b5 {[%clk 0:00:38]} 27. a3 {[%clk 0:01:07]}  Kg7 {[%clk 0:00:36]} 28. Qc2 {[%clk 0:00:59]}  Qc4 {[%clk 0:00:31]} 29. Nd2 {[%clk 0:00:54]}  Qc6 {[%clk 0:00:26]} 30. Nf1 {[%clk 0:00:49]}  Qc4 {[%clk 0:00:23]} 31. Nd2 {[%clk 0:00:48]}  Qc6 {[%clk 0:00:23]} 32. Nf1 {[%clk 0:00:37]}  Qc4 {[%clk 0:00:23]} 1/2-1/2


[Site "https://www.chess.com"]